Cogmind - Beta 14 @@@ ROGUE MODE // 2024.12.27 @ 22:18:48 Player: Unluckydood Result: Destroyed by G-47 Trooper with Particle Gun Performance ------------- Evolutions (0) 0 Regions Visited (1) 200 Robots Destroyed (7) 35 Value Destroyed (202) 202 Prototype IDs (0) 0 Alien Tech Used (0) 0 Bonus (0) 0 TOTAL SCORE: 437 Bonus ------- None Cogmind --------- Core Integrity 0/250 Matter 257/300 Energy 100/100 System Corruption 0% Temperature Cool (9) Movement Walking (120) Location -10/Materials Parts ------- > --- POWER (1) -------- (None) > --- PROPULSION (2) --- Aluminum Leg > --- UTILITY (2) ------ Signal Interpreter Seismic Detector > --- WEAPON (2) ------- Light Assault Rifle > --- INVENTORY (5) ---- Ion Engine Seismic Detector Seismic Detector Peak State ------------ > --- POWER ------------ Light Ion Engine > --- PROPULSION ------- Aluminum Leg Aluminum Leg > --- UTILITY ---------- Signal Interpreter Seismic Detector > --- WEAPON ----------- Assault Rifle Light Assault Rifle > --- INVENTORY -------- (None) [Rating: 7] Favorites ----------- Power Light Ion Engine Engine Light Ion Engine Propulsion Aluminum Leg Leg Aluminum Leg Hover Unit Hover Unit Utility Seismic Detector Device Seismic Detector Processor Signal Interpreter Weapon Light Assault Rifle Ballistic Gun Light Assault Rifle Build | -11 -10 ------- Run | Yrd Mat Slots Evolved . | . . Power . | . . Propulsion . | . . Utility . | . . Weapon . | . . Parts Attached 9 | 5 4 Power 1 | 1 . Engine 1 | 1 . Core . | . . Reactor . | . . Propulsion 4 | 2 2 Treads . | . . Leg 3 | 2 1 Wheel . | . . Hover 1 | . 1 Flight . | . . Utility 2 | . 2 Device 1 | . 1 Storage . | . . Processor 1 | . 1 Hackware . | . . Protection . | . . Artifact . | . . Weapon 2 | 2 . Energy Gun . | . . Energy Cannon . | . . Ballistic Gun 2 | 2 . Ballistic Cannon . | . . Launcher . | . . Special Weapon . | . . Impact Weapon . | . . Slashing Weapon . | . . Piercing Weapon . | . . Special Melee Weapon . | . . Unidentified Prototypes . | . . Parts Lost 5 | . 5 Power 1 | . 1 Propulsion 3 | . 3 Utility . | . . Weapon 1 | . 1 Highest Loss Streak 5 | . 5 To Critical Strikes . | . . Average Slot Usage (%) 77 | . 77 Engine 9 | . 9 Leg 17 | . 17 Hover 2 | . 2 Device 10 | . 10 Processor 10 | . 10 Ballistic Gun 26 | . 26 Peak Build Rating 7 | 5 7 Average Rating 4 | 3 5 On Entrance 2 | . 5 Naked Turns . | . . Heaviest Build 7 | 6 7 Greatest Support 20 | 20 20 Greatest Overweight (x) 1 | . 1 Average Overweight (x) . | . . Largest Inventory Capacity 5 | 5 5 Average Capacity 5 | 5 5 Most Carried 4 | 2 4 Average Carried 1 | . 1 Final Capacity 5 | 5 5 Final Carried 3 | . 3 Class Distribution -------------------- 100% | Mutant Dominant Class ---------------- Mutant | -10/Materials Resources | -11 -10 ----------- Run | Yrd Mat Matter Collected 325 | 233 92 Remotely . | . . Salvage Created 233 | 40 193 Parts 17 | 1 16 Haulers Intercepted . | . . Recyclers Shooed . | . . Parts Field Recycled . | . . Retrieved Matter . | . . Parts Self-Destructed . | . . Prevented . | . . Kills | -11 -10 ------- Run | Yrd Mat Combat Hostiles Destroyed 5 | 1 4 Guns 5 | 1 4 Classes Destroyed 2 | 1 1 Watcher 2 | . 2 Grunt 5 | 1 4 Best Kill Streak 5 | 1 5 Combat Bots Only 3 | 1 3 Max Kills in Single Turn 1 | 1 1 Gunslinging . | . . Exploded . | . . Melee . | . . Uniques/NPCs Destroyed . | . . Combat | -11 -10 -------- Run | Yrd Mat Hostile Shots Fired 71 | 7 64 Missed 23 | 3 20 Damage Taken 715 | 45 670 Core 251 | . 251 Absorbed by Shields . | . . Core Remaining (%) 100 | 100 . Volleys Fired 34 | 5 29 Largest 2 | 2 2 Hottest 40 | 40 40 Shots Fired 59 | 10 49 Gun 59 | 10 49 Cannon . | . . Launcher . | . . Special . | . . Kinetic 59 | 10 49 Thermal . | . . Explosive . | . . Electromagnetic . | . . Robot Hit Streak 8 | 8 6 Robot Miss Streak 3 | 1 3 Penetration Max . | . . Secondary Targets 2 | . 2 Max Gunslinging Chain 1 | . 1 Shots Hit Robots 40 | 8 32 Core Hits 14 | 3 11 Critical Kills . | . . Critical Parts Destroyed . | . . Critical Strikes . | . . Melee Attacks . | . . Impact . | . . Slashing . | . . Piercing . | . . Sneak Attacks . | . . Combat Hostiles . | . . Follow-up Attacks . | . . Damage Inflicted 400 | 88 312 Guns 395 | 83 312 Cannons . | . . Explosions . | . . Melee . | . . Ramming 5 | 5 . Kinetic 395 | 83 312 Thermal . | . . Explosive . | . . Electromagnetic . | . . Impact . | . . Slashing . | . . Piercing . | . . Highest Corruption . | . . Average Corruption . | . . Corruption Purged . | . . Corruption Blocked . | . . Overload Shots . | . . Overflow Damage . | . . Projectiles . | . . Explosions . | . . Melee . | . . Knockbacks . | . . Impact . | . . Kinetic . | . . Secondary . | . . Self-Inflicted Damage . | . . Shots . | . . Rammed . | . . Targets Rammed 2 | 2 . Kicked 2 | 2 . Crushed . | . . Highest Temperature 22 | 6 22 Average Temperature 7 | 6 7 Received Heat Transfer 303 | 24 279 Siege Activations . | . . Robots Corrupted . | . . Combat Hostiles . | . . Parts Fried . | . . Impact Corruptions . | . . Robots Melted . | . . Combat Hostiles . | . . Parts Melted . | . . Heat Transferred . | . . Parts Sabotaged . | . . Parts Stolen . | . . Parts Stripped . | . . Power Chain Reactions . | . . Alert | -11 -10 ------- Run | Yrd Mat Peak Influence 82 | 20 82 Initial 13 | . 13 Average 25 | 1 41 Maximum Alert Level . | . . Low Security (%) 100 | 100 100 Level 1 . | . . Level 2 . | . . Level 3 . | . . Level 4 . | . . Level 5 . | . . High Security . | . . Max Security . | . . Squads Dispatched 1 | . 1 Investigation 1 | . 1 Extermination . | . . Reinforcement . | . . Assault . | . . Garrison . | . . Intercept . | . . Searches Triggered . | . . Construction Impeded . | . . Haulers Reinforced . | . . Active Scanning Responses . | . . Cargo Convoy Interrupts . | . . Stealth | -11 -10 --------- Run | Yrd Mat Distress Signals 1 | . 1 Communications Jammed . | . . Distress Signals . | . . Times Spotted 9 | 1 8 Peak Tracking Total 5 | 1 5 Tactical Retreats . | . . Traps | -11 -10 ------- Run | Yrd Mat Traps Triggered 2 | . 2 Indirectly . | . . Trap Hack Attempts . | . . Triggered . | . . Disarmed . | . . Reprogrammed . | . . Reused . | . . Traps Extracted . | . . Installed . | . . Triggered . | . . Machines | -11 -10 ---------- Run | Yrd Mat Machines Disabled . | . . Max in Single Turn . | . . Machines Repaired . | . . Machines Dismantled . | . . Machines Sabotaged . | . . Overloaded Fab Kills . | . . Hacking | -11 -10 --------- Run | Yrd Mat Machines Accessed . | . . Terminals . | . . Fabricators . | . . Repair Stations . | . . Recycling Units . | . . Scanalyzers . | . . Garrison Access . | . . Total Hacks . | . . Successful . | . . Failed . | . . Catastrophic . | . . Database Lockouts . | . . Manual . | . . Terminals . | . . Fabricators . | . . Repair Stations . | . . Recycling Units . | . . Scanalyzers . | . . Garrison Access . | . . Terminal Hacks . | . . Fabricator Hacks . | . . Repair Station Hacks . | . . Recycling Unit Hacks . | . . Scanalyzer . | . . Garrison Access Hacks . | . . Unauthorized Hacks . | . . Terminals . | . . Fabricators . | . . Repair Stations . | . . Recycling Units . | . . Scanalyzers . | . . Garrison Access . | . . Data Cores Recovered . | . . Used . | . . Hacking Detections . | . . Full Trace Events . | . . Feedback Events . | . . Feedback Blocked . | . . Robot Schematics Acquired . | . . Robots Built . | . . Authchips . | . . Time . | . . Total Robot Build Rating . | . . Part Schematics Acquired . | . . Parts Built . | . . Authchips . | . . Time . | . . Total Part Build Rating . | . . Parts Repaired . | . . Time . | . . Parts Recycled . | . . Recycled Matter . | . . Retrieved Matter . | . . Retrieved Components . | . . Parts Scanalyzed . | . . Part Schematics Acquired . | . . Parts Damaged . | . . Bothacking | -11 -10 ------------ Run | Yrd Mat Used RIF Installer . | . . Robots Hacked . | . . Non-combat . | . . Combat . | . . Robot Hacks Applied . | . . Relay Couplers Released . | . . Fabnet Peak Effective % . | . . Robots Rewired . | . . Allies Hacked . | . . Hacks Repelled . | . . Allies | -11 -10 -------- Run | Yrd Mat Total Allies . | . . Largest Group . | . . Highest-Rated Group . | . . Highest-Rated Ally . | . . Total Orders . | . . Ally Attacks . | . . Total Damage . | . . Kills . | . . Allies Corrupted . | . . Allies Melted . | . . Intel | -11 -10 ------- Run | Yrd Mat Robot Analysis Total . | . . Derelict Logs Recovered . | . . Drone Launches . | . . Drone Recoveries . | . . Exploration | -11 -10 ------------- Run | Yrd Mat Turns Passed 241 | 94 147 Spaces Moved 127 | 68 59 Core 33 | 19 14 Treads . | . . Legs 87 | 49 38 Wheels . | . . Hover 7 | . 7 Flight . | . . Fastest Speed 50 | 50 60 Average Speed 104 | 100 109 Slowest Speed 120 | 120 120 Overloaded Moves . | . . Propulsion Burnouts . | . . Robots Hopped . | . . Cave-ins Triggered . | . . Exploration Rate (%) 12 | 8 17 Regions Visited 1 Branch Regions . Pre-discovered Areas . | . . Known Exits Taken . | . . Unknown Exits Taken 1 | 1 . Scrap Searched . | . . Spaces Dug . | . . Terrain Destroyed . | . . Melee . | . . Projectile . | . . AOE . | . . Terrain Rammed . | . . Walls Destroyed . | . . Machines Disabled . | . . Actions | -11 -10 --------- Run | Yrd Mat Total 183 | 84 99 Wait . | . . Move 126 | 67 59 Hop . | . . Pick Up 12 | 5 7 Fast Attach . | . . Attach 9 | 5 4 Detach . | . . Swap . | . . Drop . | . . Fire 34 | 5 29 Melee . | . . Ram . | . . Kick 2 | 2 . Crush . | . . Escape Stasis . | . . Rewire . | . . Trap . | . . Miscellaneous . | . . Route ------- -11/Scrapyard -10/Materials (discovered 1 exit: [*Mat]) History --------- Turn | Location | Event 2 | -11/Scrapyard | Met Revision 17 67 | -11/Scrapyard | Discovered new exit (range 8) 95 | -11/Scrapyard | Entered Materials 208 | -10/Materials | Discovered new exit (range 16) 215 | -10/Materials | Core integrity fell below 50% 215 | -10/Materials | Core integrity fell below 20% 242 | -10/Materials | Destroyed by G-47 Trooper with Particle Gun Last Messages --------------- K-01 Serf collects debris. W-16 Scout sends out distress signal. K-01 Serf collects debris. Acquired 14 matter. K-01 Serf collects debris. Acquired 49 matter. K-01 Serf collects debris. Acquired Aluminum Leg. Assault Rifle destroyed. U-05 Engineer lays Concrete. K-01 Serf collects debris. U-05 Engineer lays Concrete. K-01 Serf collects debris. U-05 Engineer lays Concrete. K-01 Serf collects debris. U-05 Engineer lays Concrete. K-01 Serf collects debris. U-05 Engineer lays Concrete. G-34 Mercenary destroyed. U-05 Engineer lays Concrete. Map ----- +----------------------------------------------------+ | ???????????????????????????????????????????????? | | ???????????????????????????????????????????????? | | ???????????????????????????????????????????????? | | ???????????????????????????????????????????????? | | ???????????????????????????????????????????????? | | ???????????????????????????????????????????????? | | ???????????????????????????????????????????????? | | ???????????????????????????????????????????????? | | ???????????????????????????????????????????????? | | ???????????????????????????????????????????????? | | ???????????????????????????????????????????????? | | ???????????????????????????????????????????????? | | ???????????????????????????????????????????????? | | ???????????????????????????????????????????????? | | ????????????????##??##+????????????????????????? | | ???????????????? #???????????????????????? | | ??????????????? ! #???????????????????????? | | ?????????????# #???????????????????????? | | ?????????????# """ """ #???????????????????????? | | ???????????? # """ """ #???????????????????????? | | ????????????a/ """ """ #???????????????????????? | | ?????????????# ????????????????????????? | | ?????????????# !????????????????????????? | | ??############## ;;;###??????????????????????? | | ??# ! # ;;#####+####?????????????? | | ??# = # @ #?????????????? | | ??# ! + [ ! < #?????????????? | | ??# ! # * #?????????????? | | ??# #u ####+####?????????????? | | ??# # k t #???? ???????????????? | | ??#####+###### #????? ??????????????? | | ?????## ###### ! #??????"""????????????? | | ?????# [g #???????""????????????? | | ?????+ *% #?????????????????????? | | ?????# [#### #?????????????????????? | | ?????# ###### #??# #?????????????????????? | | ?????# #????##+##??# #?????????????????????? | | ?????# #????? ???# #?????????????????????? | | ?????# #???? ???# #?????????????????????? | | ?????# #??????""???# #?????????????????????? | | ?????# #??????""???# #?????????????????????? | | ?????# #???????????# #?????????????????????? | | ?????+ #???????????? ??????????????????????? | | ?????# #?????????????????????????????????????? | | ?????# #?????????????????????????????????????? | | ?????# #?????????????????????????????????????? | | ?????# #?????????????????????????????????????? | | ?????# #?#???????????????????????????????????? | | ###### # #???????????????????????????????????? | | #????????????????????????????????????? | +----------------------------------------------------+ Best States ------------- Heat Dissipation 25 Energy Generation 10 Energy Capacity 125 Matter Stores 269 Matter Capacity 300 Sight Range 16 Terrain Scan Density 10 Evasion (%) 55 Item Schematics ----------------- None Robot Schematics ------------------ None Fabricated ------------ Nothing Alien Tech Used ----------------- None Achievements -------------- None Challenges ------------ None Game ------ Seed PoweredLayeredSuperbattery Manual? 0 Play Time 00:05:29 Cumulative 1.6 hours Start 2024.12.27 @ 22:15:08 End 2024.12.27 @ 22:18:48 Sessions 1 Manual Loads 0 Difficulty Rogue Special Mode None Game No. 8 Rogue 8 Adventurer 0 Explorer 0 Win Type - Total 0 Types 0/0/0/0/0/0/0/0/0 Lore% 1 Gallery% 6 Achievement% 6 Wizard Run 0 Options --------- Layout 1 ASCII 0 Keyboard 0 Movement Mouse Keybinds 0 Fullscreen 1 Font 32/Terminus Map View 50x40 Zoom Use 0% Tactical HUD 0 Map Filters NONE Filters NONE Steam 1 RUN: 2e397dfa-8069-4b78-b463-e39ce01339f4